[Event "*** Titled Tuesday Blitz"]
[Site "Chess.com"]
[Date "2021.04.27"]
[Round "9"]
[White "LamaChampetre"]
[Black "HanSchut"]
[Result "1-0"]
[WhiteElo "2216"]
[BlackElo "2272"]
[TimeControl "180+1"]
[EndTime "11:44:18 PDT"]
[Termination "LamaChampetre won by resignation"]

1. d4 {[%clk 0:02:58.5]} 1... Nf6 {[%clk 0:02:59.6]} 2. c4 {[%clk 0:02:56]} 2...
g6 {[%clk 0:02:59.2]} 3. Nc3 {[%clk 0:02:56.2]} 3... d5 {[%clk 0:02:59.2]} 4.
cxd5 {[%clk 0:02:57.1]} 4... Nxd5 {[%clk 0:02:59.7]} 5. e4 {[%clk 0:02:57.7]}
5... Nxc3 {[%clk 0:03:00.2]} 6. bxc3 {[%clk 0:02:58.6]} 6... Bg7 {[%clk
0:03:00.3]} 7. Be3 {[%clk 0:02:59.1]} 7... c5 {[%clk 0:03:00.7]} 8. Nf3 {[%clk
0:02:59.5]} 8... Qa5 {[%clk 0:03:00.7]} 9. Qd2 {[%clk 0:02:59.7]} 9... Nc6
{[%clk 0:03:00.3]} 10. Rb1 {[%clk 0:02:59.3]} 10... a6 {[%clk 0:03:00]} 11. Rc1
{[%clk 0:02:59.4]} 11... cxd4 {[%clk 0:02:59]} 12. cxd4 {[%clk 0:02:58.1]} 12...
Qxd2+ {[%clk 0:02:59.9]} 13. Kxd2 {[%clk 0:02:58.5]} 13... O-O {[%clk 0:03:00]}
14. d5 {[%clk 0:02:51.5]} 14... Rd8 {[%clk 0:02:55.2]} 15. Kc2 {[%clk
0:02:50.7]} 15... Ne5 {[%clk 0:02:14.6]} 16. Nxe5 {[%clk 0:02:48]} 16... Bxe5
{[%clk 0:02:15.5]} 17. f4 {[%clk 0:02:46.8]} 17... Bg7 {[%clk 0:02:11.8]} 18.
Bb6 {[%clk 0:02:24]} 18... Rd6 {[%clk 0:01:55.6]} 19. Bc5 {[%clk 0:02:15.1]}
19... Rd7 {[%clk 0:01:55.8]} 20. g3 {[%clk 0:01:58.3]} 20... Rc7 {[%clk
0:01:51.3]} 21. Kb3 {[%clk 0:01:26]} 21... Bg4 {[%clk 0:01:42.4]} 22. Bd3 {[%clk
0:01:18.4]} 22... f5 {[%clk 0:01:18.3]} 23. d6 {[%clk 0:00:56.1]} 23... exd6
{[%clk 0:01:05.4]} 24. Bxd6 {[%clk 0:00:56.5]} 24... Rxc1 {[%clk 0:01:06]} 25.
Rxc1 {[%clk 0:00:56.4]} 25... Rd8 {[%clk 0:00:58.4]} 26. Bc4+ {[%clk 0:00:50.4]}
26... Kh8 {[%clk 0:00:57.6]} 27. Bc7 {[%clk 0:00:43.8]} 27... Rc8 {[%clk
0:00:46.5]} 28. Bd5 {[%clk 0:00:34.2]} 28... fxe4 {[%clk 0:00:40.5]} 29. Bxb7
{[%clk 0:00:31.3]} 29... Be6+ {[%clk 0:00:37]} 30. Ka4 {[%clk 0:00:25.4]} 30...
Re8 {[%clk 0:00:31.5]} 31. Bc6 {[%clk 0:00:22.6]} 31... Bd7 {[%clk 0:00:31.4]}
32. Bxd7 {[%clk 0:00:20.3]} 32... Re7 {[%clk 0:00:31.9]} 33. Rd1 {[%clk
0:00:18]} 33... e3 {[%clk 0:00:32.2]} 34. Ba5 {[%clk 0:00:16.7]} 34... e2 {[%clk
0:00:31.8]} 35. Rc1 {[%clk 0:00:16.4]} 35... Rxd7 {[%clk 0:00:19.7]} 36. Rc8+
{[%clk 0:00:15.7]} 36... Bf8 {[%clk 0:00:20.1]} 37. Rxf8+ {[%clk 0:00:14.5]}
37... Kg7 {[%clk 0:00:21]} 38. Re8 {[%clk 0:00:14.7]} 38... Rd4+ {[%clk
0:00:16.5]} 39. Kb3 {[%clk 0:00:14.3]} 39... Rd3+ {[%clk 0:00:15.9]} 40. Kc2
{[%clk 0:00:12.6]} 40... Ra3 {[%clk 0:00:16]} 41. Bc3+ {[%clk 0:00:09.2]} 41...
Kf7 {[%clk 0:00:16.6]} 42. Rxe2 {[%clk 0:00:07.8]} 42... Rxa2+ {[%clk
0:00:17.3]} 43. Kd3 {[%clk 0:00:08.2]} 43... Rxe2 {[%clk 0:00:06.3]} 44. Kxe2
{[%clk 0:00:09.1]} 44... Ke6 {[%clk 0:00:06.9]} 45. Kd3 {[%clk 0:00:08.2]} 45...
Kf5 {[%clk 0:00:07.5]} 46. Ke3 {[%clk 0:00:07.9]} 46... Kg4 {[%clk 0:00:07.9]}
47. Kf2 {[%clk 0:00:08.5]} 47... Kh3 {[%clk 0:00:08.3]} 48. Kg1 {[%clk
0:00:07.9]} 48... h5 {[%clk 0:00:08.4]} 49. Ba5 {[%clk 0:00:08.8]} 49... h4
{[%clk 0:00:08.4]} 50. Be1 {[%clk 0:00:07]} 50... hxg3 {[%clk 0:00:07.7]} 51.
hxg3 {[%clk 0:00:07.9]} 51... a5 {[%clk 0:00:07.7]} 52. Kf2 {[%clk 0:00:08.8]}
52... a4 {[%clk 0:00:07.5]} 53. Bc3 {[%clk 0:00:09.7]} 53... Kg4 {[%clk
0:00:07.9]} 54. Ba1 {[%clk 0:00:10.6]} 54... a3 {[%clk 0:00:08.2]} 55. Kg2
{[%clk 0:00:10.6]} 55... a2 {[%clk 0:00:08.7]} 56. Kf2 {[%clk 0:00:10.4]} 56...
g5 {[%clk 0:00:07.9]} 57. Ke3 {[%clk 0:00:08.7]} 57... Kf5 {[%clk 0:00:06.5]}
58. Kf3 {[%clk 0:00:08.6]} 58... g4+ {[%clk 0:00:06.2]} 59. Ke3 {[%clk
0:00:07.8]} 59... Ke6 {[%clk 0:00:06.5]} 60. Ke4 {[%clk 0:00:08.7]} 60... Kf7
{[%clk 0:00:06.4]} 61. f5 {[%clk 0:00:09.1]} 1-0

[Event "*** Titled Tuesday Blitz"]
[Site "Chess.com"]
[Date "2021.04.27"]
[Round "9"]
[White "pastouche06"]
[Black "Rsnr"]
[Result "0-1"]
[WhiteElo "2568"]
[BlackElo "2756"]
[TimeControl "180+1"]
[EndTime "11:44:19 PDT"]
[Termination "Rsnr won on time"]

1. d4 {[%clk 0:03:00.9]} 1... d5 {[%clk 0:02:59.7]} 2. c4 {[%clk 0:03:00.5]}
2... c6 {[%clk 0:03:00.4]} 3. Nf3 {[%clk 0:02:59.9]} 3... Nf6 {[%clk 0:03:00.8]}
4. Qc2 {[%clk 0:03:00.4]} 4... g6 {[%clk 0:03:00.4]} 5. Bf4 {[%clk 0:02:59.9]}
5... Bg7 {[%clk 0:03:00.9]} 6. e3 {[%clk 0:02:59.8]} 6... O-O {[%clk 0:03:01.6]}
7. Nc3 {[%clk 0:02:59.7]} 7... c5 {[%clk 0:03:02.4]} 8. dxc5 {[%clk 0:02:59.7]}
8... Qa5 {[%clk 0:03:02.4]} 9. Rd1 {[%clk 0:02:55.2]} 9... dxc4 {[%clk
0:03:02.7]} 10. Bxc4 {[%clk 0:02:54.6]} 10... Qxc5 {[%clk 0:03:03.3]} 11. Qb3
{[%clk 0:02:55]} 11... Nc6 {[%clk 0:03:03.1]} 12. Ng5 {[%clk 0:02:29.8]} 12...
e6 {[%clk 0:02:56.1]} 13. Nge4 {[%clk 0:02:28.1]} 13... Nxe4 {[%clk 0:02:51.9]}
14. Nxe4 {[%clk 0:02:29]} 14... Qa5+ {[%clk 0:02:51.9]} 15. Nc3 {[%clk
0:02:23.4]} 15... Ne5 {[%clk 0:02:32.1]} 16. Be2 {[%clk 0:02:20.6]} 16... b6
{[%clk 0:02:24.2]} 17. O-O {[%clk 0:02:18]} 17... Bb7 {[%clk 0:02:24.5]} 18. Rd2
{[%clk 0:02:09]} 18... Rad8 {[%clk 0:02:09.3]} 19. Rfd1 {[%clk 0:02:08.4]} 19...
Rxd2 {[%clk 0:02:10]} 20. Rxd2 {[%clk 0:02:09.3]} 20... h6 {[%clk 0:02:10.8]}
21. h3 {[%clk 0:02:04.8]} 21... Bc6 {[%clk 0:02:08.9]} 22. a3 {[%clk 0:01:55]}
22... Qc5 {[%clk 0:02:08.6]} 23. Rd1 {[%clk 0:01:47.3]} 23... Qe7 {[%clk
0:02:03.4]} 24. Nb5 {[%clk 0:01:42]} 24... Bd5 {[%clk 0:02:01.9]} 25. Qa4 {[%clk
0:01:38.7]} 25... a5 {[%clk 0:01:52.6]} 26. Nc3 {[%clk 0:01:28.8]} 26... Bc6
{[%clk 0:01:51]} 27. Qb3 {[%clk 0:01:27]} 27... Qb7 {[%clk 0:01:42.1]} 28. Bf1
{[%clk 0:01:16.6]} 28... g5 {[%clk 0:01:25.7]} 29. Bh2 {[%clk 0:01:08.6]} 29...
Rc8 {[%clk 0:01:25.7]} 30. Nb5 {[%clk 0:01:06]} 30... Bd5 {[%clk 0:01:21.8]} 31.
Qa4 {[%clk 0:00:59]} 31... Qc6 {[%clk 0:01:13.2]} 32. Nc3 {[%clk 0:00:52.6]}
32... Qxa4 {[%clk 0:01:13.1]} 33. Nxa4 {[%clk 0:00:53.5]} 33... Bb3 {[%clk
0:01:13.7]} 34. Nxb6 {[%clk 0:00:52]} 34... Rb8 {[%clk 0:00:51.9]} 35. Rd6
{[%clk 0:00:44.8]} 35... Bf8 {[%clk 0:00:46.8]} 36. Rd2 {[%clk 0:00:32.5]} 36...
Rxb6 {[%clk 0:00:30.2]} 37. Bxe5 {[%clk 0:00:32]} 37... Bd5 {[%clk 0:00:30.2]}
38. Bc3 {[%clk 0:00:31.3]} 38... a4 {[%clk 0:00:28.5]} 39. Rd4 {[%clk
0:00:26.1]} 39... Bg7 {[%clk 0:00:13.1]} 40. Rxa4 {[%clk 0:00:25.3]} 40... Bxc3
{[%clk 0:00:13.4]} 41. bxc3 {[%clk 0:00:26.2]} 41... Rb1 {[%clk 0:00:14]} 42. f3
{[%clk 0:00:17.3]} 42... Bc6 {[%clk 0:00:14.2]} 43. Rb4 {[%clk 0:00:16.7]} 43...
Ra1 {[%clk 0:00:14.7]} 44. Kf2 {[%clk 0:00:14.4]} 44... Ra2+ {[%clk 0:00:15.3]}
45. Kg3 {[%clk 0:00:13.2]} 45... Rxa3 {[%clk 0:00:15.9]} 46. c4 {[%clk
0:00:13.4]} 46... Rxe3 {[%clk 0:00:15.8]} 47. Rb6 {[%clk 0:00:11]} 47... Be8
{[%clk 0:00:14.9]} 48. Rb8 {[%clk 0:00:10.3]} 48... Kf8 {[%clk 0:00:14.8]} 49.
c5 {[%clk 0:00:10.7]} 49... Ke7 {[%clk 0:00:15.4]} 50. Rb7+ {[%clk 0:00:08.9]}
50... Kf6 {[%clk 0:00:15.8]} 51. Bb5 {[%clk 0:00:06.9]} 51... Rb3 {[%clk
0:00:11.6]} 52. c6 {[%clk 0:00:05]} 52... Rc3 {[%clk 0:00:11.3]} 53. Rb8 {[%clk
0:00:02.2]} 53... Ke7 {[%clk 0:00:08.8]} 54. c7 {[%clk 0:00:01.4]} 54... Bxb5
{[%clk 0:00:06]} 0-1

[Event "*** Titled Tuesday Blitz"]
[Site "Chess.com"]
[Date "2021.04.27"]
[Round "9"]
[White "sm_sharon"]
[Black "kakorrhaphiophobie"]
[Result "1/2-1/2"]
[WhiteElo "2150"]
[BlackElo "2289"]
[TimeControl "180+1"]
[EndTime "11:44:26 PDT"]
[Termination "Game drawn by repetition"]

1. e4 {[%clk 0:02:26.9]} 1... e6 {[%clk 0:02:59.6]} 2. d4 {[%clk 0:02:25.5]}
2... d5 {[%clk 0:02:59.9]} 3. Nd2 {[%clk 0:02:24.5]} 3... c5 {[%clk 0:02:59]} 4.
Ngf3 {[%clk 0:02:21.9]} 4... cxd4 {[%clk 0:02:56.6]} 5. Nxd4 {[%clk 0:02:21.2]}
5... Nc6 {[%clk 0:02:56.4]} 6. N4f3 {[%clk 0:02:06.8]} 6... Nf6 {[%clk
0:02:35.7]} 7. Bd3 {[%clk 0:02:04.2]} 7... dxe4 {[%clk 0:02:22]} 8. Nxe4 {[%clk
0:02:02.9]} 8... Nxe4 {[%clk 0:02:22.2]} 9. Bxe4 {[%clk 0:02:02.3]} 9... Qxd1+
{[%clk 0:02:23.1]} 10. Kxd1 {[%clk 0:02:02.3]} 10... Bd7 {[%clk 0:02:16.6]} 11.
c3 {[%clk 0:02:00.9]} 11... f5 {[%clk 0:02:03]} 12. Bd3 {[%clk 0:01:54.8]} 12...
e5 {[%clk 0:01:59.1]} 13. Nxe5 {[%clk 0:01:45.9]} 13... Nxe5 {[%clk 0:01:59.1]}
14. Re1 {[%clk 0:01:46.1]} 14... O-O-O {[%clk 0:01:54.1]} 15. Rxe5 {[%clk
0:01:44.5]} 15... Bd6 {[%clk 0:01:50.3]} 16. Re2 {[%clk 0:01:33.3]} 16... Bxh2
{[%clk 0:01:23.9]} 17. Bg5 {[%clk 0:01:29.1]} 17... Ba4+ {[%clk 0:01:13.7]} 18.
Kd2 {[%clk 0:01:19.6]} 18... Bb5 {[%clk 0:00:53.6]} 19. Bxd8 {[%clk 0:01:11.5]}
19... Rxd8 {[%clk 0:00:15.3]} 20. c4 {[%clk 0:01:05.9]} 20... Bxc4 {[%clk
0:00:15.5]} 21. Rc1 {[%clk 0:01:01.4]} 21... Rxd3+ {[%clk 0:00:15.7]} 22. Ke1
{[%clk 0:01:00.6]} 22... b5 {[%clk 0:00:11.6]} 23. b3 {[%clk 0:00:49.6]} 23...
Bf4 {[%clk 0:00:12.1]} 24. Rcc2 {[%clk 0:00:44.4]} 24... Kd7 {[%clk 0:00:07.2]}
25. bxc4 {[%clk 0:00:43.1]} 25... bxc4 {[%clk 0:00:08.1]} 26. Rxc4 {[%clk
0:00:41.3]} 26... Bd6 {[%clk 0:00:08.8]} 27. Rd2 {[%clk 0:00:38.8]} 27... Rxd2
{[%clk 0:00:05.9]} 28. Kxd2 {[%clk 0:00:38.2]} 28... h5 {[%clk 0:00:06.1]} 29.
Ra4 {[%clk 0:00:37.1]} 29... Bc5 {[%clk 0:00:06.2]} 30. f3 {[%clk 0:00:35.7]}
30... Bb6 {[%clk 0:00:04]} 31. Kd3 {[%clk 0:00:34.4]} 31... Ke6 {[%clk
0:00:04.4]} 32. Rc4 {[%clk 0:00:32.9]} 32... g5 {[%clk 0:00:03.5]} 33. Rc6+
{[%clk 0:00:31.5]} 33... Ke5 {[%clk 0:00:04.1]} 34. Rh6 {[%clk 0:00:29]} 34...
h4 {[%clk 0:00:04.4]} 35. a4 {[%clk 0:00:25.8]} 35... Kf4 {[%clk 0:00:05.1]} 36.
Ke2 {[%clk 0:00:24.4]} 36... Kg3 {[%clk 0:00:04.9]} 37. Kf1 {[%clk 0:00:24.3]}
37... g4 {[%clk 0:00:05.5]} 38. fxg4 {[%clk 0:00:24.2]} 38... fxg4 {[%clk
0:00:06.4]} 39. Rh5 {[%clk 0:00:23.8]} 39... h3 {[%clk 0:00:06.4]} 40. gxh3
{[%clk 0:00:23.8]} 40... gxh3 {[%clk 0:00:07.3]} 41. a5 {[%clk 0:00:21.9]} 41...
Be3 {[%clk 0:00:05.3]} 42. a6 {[%clk 0:00:19.5]} 42... h2 {[%clk 0:00:04.6]} 43.
Rh7 {[%clk 0:00:18.1]} 43... Bg1 {[%clk 0:00:04.4]} 44. Rh8 {[%clk 0:00:17.3]}
44... Kf3 {[%clk 0:00:04.8]} 45. Rf8+ {[%clk 0:00:16.7]} 45... Ke4 {[%clk
0:00:05.3]} 46. Kg2 {[%clk 0:00:16.7]} 46... Kd5 {[%clk 0:00:05.7]} 47. Rf6
{[%clk 0:00:15.5]} 47... Kc5 {[%clk 0:00:06.2]} 48. Rh6 {[%clk 0:00:14.7]} 48...
Kb5 {[%clk 0:00:06.8]} 49. Kh1 {[%clk 0:00:14.4]} 49... Ka5 {[%clk 0:00:06.8]}
50. Kg2 {[%clk 0:00:14.3]} 50... Kb5 {[%clk 0:00:07.2]} 51. Kh1 {[%clk
0:00:14.1]} 51... Ka5 {[%clk 0:00:07.9]} 52. Kg2 {[%clk 0:00:14.1]} 52... Kb4
{[%clk 0:00:08.6]} 53. Kh1 {[%clk 0:00:14.4]} 53... Ka4 {[%clk 0:00:09.2]} 54.
Kg2 {[%clk 0:00:14.2]} 54... Ka5 {[%clk 0:00:08.7]} 55. Kh1 {[%clk 0:00:13.3]}
55... Kb5 {[%clk 0:00:09.1]} 56. Kg2 {[%clk 0:00:13]} 56... Ka5 {[%clk
0:00:09.7]} 57. Kh1 {[%clk 0:00:12.8]} 57... Kb5 {[%clk 0:00:10.2]} 58. Kg2
{[%clk 0:00:12.7]} 58... Ka5 {[%clk 0:00:10.8]} 1/2-1/2

[Event "*** Titled Tuesday Blitz"]
[Site "Chess.com"]
[Date "2021.04.27"]
[Round "9"]
[White "Kislov_Oleg"]
[Black "Kretov_Evgenij"]
[Result "1/2-1/2"]
[WhiteElo "2506"]
[BlackElo "2649"]
[TimeControl "180+1"]
[EndTime "11:44:27 PDT"]
[Termination "Game drawn by agreement"]

1. e4 {[%clk 0:03:00.9]} 1... c5 {[%clk 0:03:00]} 2. Nf3 {[%clk 0:03:00.7]} 2...
Nc6 {[%clk 0:03:00.3]} 3. c3 {[%clk 0:03:00.7]} 3... Nf6 {[%clk 0:02:59.6]} 4.
e5 {[%clk 0:03:00.5]} 4... Nd5 {[%clk 0:02:59.8]} 5. d4 {[%clk 0:03:01.4]} 5...
cxd4 {[%clk 0:03:00.1]} 6. cxd4 {[%clk 0:03:02.1]} 6... d6 {[%clk 0:03:00.5]} 7.
Bc4 {[%clk 0:03:02.7]} 7... e6 {[%clk 0:03:00.8]} 8. O-O {[%clk 0:03:00.4]} 8...
a6 {[%clk 0:02:59]} 9. a3 {[%clk 0:02:55.8]} 9... Be7 {[%clk 0:02:57.7]} 10. Qe2
{[%clk 0:02:43.8]} 10... dxe5 {[%clk 0:02:54.7]} 11. dxe5 {[%clk 0:02:42.7]}
11... b5 {[%clk 0:02:54.2]} 12. Ba2 {[%clk 0:02:37.5]} 12... Bb7 {[%clk
0:02:53.7]} 13. Rd1 {[%clk 0:02:36.6]} 13... Qc7 {[%clk 0:02:39.7]} 14. Bxd5
{[%clk 0:02:18.7]} 14... exd5 {[%clk 0:02:39.8]} 15. Nc3 {[%clk 0:02:18.8]}
15... d4 {[%clk 0:02:32.1]} 16. Nd5 {[%clk 0:02:14.6]} 16... Qd8 {[%clk
0:02:32]} 17. Nf6+ {[%clk 0:01:44.8]} 17... Kf8 {[%clk 0:02:18.3]} 18. Ne4
{[%clk 0:01:31.1]} 18... Qd5 {[%clk 0:02:13.8]} 19. Bg5 {[%clk 0:01:19.1]} 19...
Bxg5 {[%clk 0:02:09.8]} 20. Nexg5 {[%clk 0:01:18]} 20... Re8 {[%clk 0:01:58]}
21. Qd3 {[%clk 0:00:46.8]} 21... h6 {[%clk 0:01:41.2]} 22. Ne4 {[%clk 0:00:33]}
22... Nxe5 {[%clk 0:01:39.4]} 23. Nxe5 {[%clk 0:00:32.2]} 23... Qxe5 {[%clk
0:01:33.4]} 24. f3 {[%clk 0:00:24.4]} 24... Bxe4 {[%clk 0:01:32.4]} 25. fxe4
{[%clk 0:00:23.6]} 25... Qxe4 {[%clk 0:01:32.7]} 26. Qxd4 {[%clk 0:00:22.3]}
26... Qxd4+ {[%clk 0:01:20.6]} 27. Rxd4 {[%clk 0:00:23.2]} 27... g6 {[%clk
0:01:11.6]} 28. Rd6 {[%clk 0:00:17]} 28... Re2 {[%clk 0:01:10.1]} 29. Rf1 {[%clk
0:00:11.6]} 29... Kg7 {[%clk 0:01:07.5]} 30. Rxa6 {[%clk 0:00:09.8]} 30... Rxb2
{[%clk 0:01:05.9]} 31. Ra7 {[%clk 0:00:10.3]} 31... Rf8 {[%clk 0:01:05.7]} 32.
Rb7 {[%clk 0:00:10.9]} 32... Rb3 {[%clk 0:01:02.1]} 33. Rf3 {[%clk 0:00:09]}
33... Rxf3 {[%clk 0:00:54.6]} 34. gxf3 {[%clk 0:00:09.9]} 34... Ra8 {[%clk
0:00:54.9]} 35. Rxb5 {[%clk 0:00:10.4]} 35... Rxa3 {[%clk 0:00:55]} 36. Kg2
{[%clk 0:00:10.8]} 36... g5 {[%clk 0:00:54.7]} 37. Kg3 {[%clk 0:00:10.7]} 37...
Kg6 {[%clk 0:00:54.4]} 38. h3 {[%clk 0:00:10.4]} 38... h5 {[%clk 0:00:53.5]} 39.
Rb6+ {[%clk 0:00:10.4]} 39... f6 {[%clk 0:00:53.3]} 40. Rb2 {[%clk 0:00:08.6]}
40... h4+ {[%clk 0:00:52]} 41. Kg2 {[%clk 0:00:08.2]} 41... Re3 {[%clk
0:00:50.8]} 42. Rd2 {[%clk 0:00:08.2]} 42... Kf5 {[%clk 0:00:50.5]} 43. Rc2
{[%clk 0:00:08.3]} 43... Rd3 {[%clk 0:00:47.5]} 44. Rc5+ {[%clk 0:00:08.1]}
44... Ke6 {[%clk 0:00:47.6]} 45. Rc2 {[%clk 0:00:07.1]} 45... Ke5 {[%clk
0:00:47.2]} 46. Kf2 {[%clk 0:00:06.9]} 46... Ra3 {[%clk 0:00:45.3]} 47. Rb2
{[%clk 0:00:07]} 47... Ra4 {[%clk 0:00:41.9]} 48. Rb5+ {[%clk 0:00:06.5]} 48...
Kf4 {[%clk 0:00:41.6]} 49. Rb2 {[%clk 0:00:06.5]} 49... f5 {[%clk 0:00:41.5]}
50. Rc2 {[%clk 0:00:06.5]} 50... Rd4 {[%clk 0:00:39.2]} 51. Rb2 {[%clk
0:00:06.7]} 51... Ke5 {[%clk 0:00:37.1]} 52. Ra2 {[%clk 0:00:06.5]} 52... Rd3
{[%clk 0:00:36.7]} 53. Ra5+ {[%clk 0:00:06.5]} 53... Rd5 {[%clk 0:00:36.8]} 54.
Ra2 {[%clk 0:00:06.5]} 54... Rc5 {[%clk 0:00:37]} 55. Rb2 {[%clk 0:00:06.9]}
55... Rc1 {[%clk 0:00:35.2]} 56. Ra2 {[%clk 0:00:06.9]} 56... Rh1 {[%clk
0:00:34.5]} 57. Kg2 {[%clk 0:00:07.3]} 57... Rd1 {[%clk 0:00:34.4]} 58. Kf2
{[%clk 0:00:07.6]} 58... Rd4 {[%clk 0:00:34.6]} 59. Ra5+ {[%clk 0:00:07.6]}
59... Kf4 {[%clk 0:00:34.5]} 60. Ra2 {[%clk 0:00:07.7]} 60... g4 {[%clk
0:00:32.6]} 61. fxg4 {[%clk 0:00:07.5]} 61... fxg4 {[%clk 0:00:32.5]} 62. hxg4
{[%clk 0:00:07.9]} 62... h3 {[%clk 0:00:31.5]} 63. Kg1 {[%clk 0:00:06.6]} 63...
Kg3 {[%clk 0:00:26.8]} 64. Ra3+ {[%clk 0:00:06.9]} 64... Kxg4 {[%clk 0:00:26.8]}
65. Kh2 {[%clk 0:00:07.2]} 65... Rd2+ {[%clk 0:00:27.1]} 66. Kh1 {[%clk
0:00:07.4]} 1/2-1/2

[Event "*** Titled Tuesday Blitz"]
[Site "Chess.com"]
[Date "2021.04.27"]
[Round "9"]
[White "PotapovaM"]
[Black "mjray79"]
[Result "0-1"]
[WhiteElo "2561"]
[BlackElo "2475"]
[TimeControl "180+1"]
[EndTime "11:44:29 PDT"]
[Termination "mjray79 won by resignation"]

1. e4 {[%clk 0:02:59.7]} 1... e5 {[%clk 0:02:57.9]} 2. Nf3 {[%clk 0:02:59.5]}
2... Nc6 {[%clk 0:02:58.3]} 3. Bb5 {[%clk 0:03:00.2]} 3... a6 {[%clk 0:02:58.2]}
4. Ba4 {[%clk 0:03:00.2]} 4... Nf6 {[%clk 0:02:57.3]} 5. O-O {[%clk 0:03:00]}
5... Be7 {[%clk 0:02:55.9]} 6. Qe2 {[%clk 0:02:58]} 6... b5 {[%clk 0:02:54.5]}
7. Bb3 {[%clk 0:02:57.2]} 7... O-O {[%clk 0:02:54.5]} 8. c3 {[%clk 0:02:57.2]}
8... d5 {[%clk 0:02:53.8]} 9. d3 {[%clk 0:02:44.7]} 9... Re8 {[%clk 0:02:46.5]}
10. h3 {[%clk 0:02:40.2]} 10... Bf8 {[%clk 0:02:44.3]} 11. Rd1 {[%clk
0:02:37.5]} 11... h6 {[%clk 0:02:41.6]} 12. Nbd2 {[%clk 0:02:37]} 12... Bb7
{[%clk 0:02:40.2]} 13. a4 {[%clk 0:02:35]} 13... Qd7 {[%clk 0:02:30.1]} 14. Nf1
{[%clk 0:02:34.1]} 14... Na5 {[%clk 0:02:25.4]} 15. Bc2 {[%clk 0:02:33.3]} 15...
c5 {[%clk 0:02:25.1]} 16. Ng3 {[%clk 0:02:27.8]} 16... g6 {[%clk 0:02:24.5]} 17.
h4 {[%clk 0:02:01.4]} 17... Qg4 {[%clk 0:02:13.1]} 18. b3 {[%clk 0:01:31.9]}
18... c4 {[%clk 0:02:06.1]} 19. dxc4 {[%clk 0:01:09.8]} 19... dxe4 {[%clk
0:01:59.5]} 20. Nh2 {[%clk 0:00:58.5]} 20... Qxh4 {[%clk 0:01:52.1]} 21. cxb5
{[%clk 0:00:56.3]} 21... axb5 {[%clk 0:01:51.9]} 22. axb5 {[%clk 0:00:56]} 22...
Bc5 {[%clk 0:01:49.1]} 23. b4 {[%clk 0:00:53.4]} 23... Qxg3 {[%clk 0:01:35.8]}
24. bxc5 {[%clk 0:00:52.3]} 24... Qxc3 {[%clk 0:01:35.7]} 25. Bxh6 {[%clk
0:00:38]} 25... Qxc5 {[%clk 0:01:33]} 26. Rac1 {[%clk 0:00:30]} 26... Qc4 {[%clk
0:01:22]} 27. Qxc4 {[%clk 0:00:22.6]} 27... Nxc4 {[%clk 0:01:22.9]} 28. Bb3
{[%clk 0:00:09.6]} 28... Nb2 {[%clk 0:01:14.2]} 29. Rd6 {[%clk 0:00:09.6]} 29...
Kh7 {[%clk 0:00:55.9]} 30. Rxf6 {[%clk 0:00:08.5]} 30... Kxh6 {[%clk 0:00:55.7]}
31. Bxf7 {[%clk 0:00:08.2]} 31... Re7 {[%clk 0:00:52.4]} 32. Rxg6+ {[%clk
0:00:04.2]} 32... Kh7 {[%clk 0:00:51.4]} 33. Rf6 {[%clk 0:00:04.5]} 33... Kg7
{[%clk 0:00:51.6]} 34. Ng4 {[%clk 0:00:04.1]} 34... Rxf7 {[%clk 0:00:50.5]} 35.
Rxf7+ {[%clk 0:00:05]} 35... Kxf7 {[%clk 0:00:51.4]} 36. Rc7+ {[%clk 0:00:05.7]}
36... Ke6 {[%clk 0:00:51.5]} 37. Rxb7 {[%clk 0:00:06.6]} 37... Nc4 {[%clk
0:00:44.8]} 38. Rc7 {[%clk 0:00:06.2]} 38... Kd5 {[%clk 0:00:44]} 39. Nf6+
{[%clk 0:00:05.7]} 39... Kd4 {[%clk 0:00:41.6]} 40. Nxe4 {[%clk 0:00:06.3]}
40... Na3 {[%clk 0:00:36.4]} 41. b6 {[%clk 0:00:05.5]} 41... Kxe4 {[%clk
0:00:36.6]} 42. f3+ {[%clk 0:00:04.7]} 42... Kd5 {[%clk 0:00:36.1]} 43. Rd7+
{[%clk 0:00:03.1]} 43... Kc6 {[%clk 0:00:35.8]} 44. Re7 {[%clk 0:00:03.5]} 44...
Nc4 {[%clk 0:00:35.5]} 45. Kf2 {[%clk 0:00:02.8]} 45... Kxb6 {[%clk 0:00:34.6]}
46. g3 {[%clk 0:00:01.7]} 46... Ra2+ {[%clk 0:00:34.1]} 47. Ke1 {[%clk
0:00:02.4]} 47... Kc5 {[%clk 0:00:34.6]} 48. f4 {[%clk 0:00:02.6]} 48... Kd6
{[%clk 0:00:29.4]} 49. Re8 {[%clk 0:00:02.2]} 49... Kd7 {[%clk 0:00:29.7]} 50.
Rg8 {[%clk 0:00:02.2]} 50... e4 {[%clk 0:00:29.6]} 51. f5 {[%clk 0:00:02.7]}
51... Ke7 {[%clk 0:00:26.9]} 52. Rg4 {[%clk 0:00:02.9]} 52... Nd6 {[%clk
0:00:24.7]} 53. Rf4 {[%clk 0:00:03.6]} 53... Kf6 {[%clk 0:00:24.8]} 54. g4
{[%clk 0:00:03.9]} 54... Kg5 {[%clk 0:00:25.2]} 55. Rf1 {[%clk 0:00:04]} 55...
Kxg4 {[%clk 0:00:23.1]} 56. f6 {[%clk 0:00:03.4]} 56... Ra1+ {[%clk 0:00:23]}
57. Ke2 {[%clk 0:00:03.8]} 57... Rxf1 {[%clk 0:00:23.9]} 58. Kxf1 {[%clk
0:00:04.7]} 58... Kf3 {[%clk 0:00:23.7]} 59. Ke1 {[%clk 0:00:04.6]} 59... e3
{[%clk 0:00:23.2]} 60. Kf1 {[%clk 0:00:05.3]} 60... e2+ {[%clk 0:00:18.1]} 61.
Ke1 {[%clk 0:00:05.9]} 61... Nf7 {[%clk 0:00:19]} 62. Kd2 {[%clk 0:00:05.9]}
62... Kf2 {[%clk 0:00:19.9]} 0-1